Cogmind - Beta 13 @@@ ROGUE MODE // 2024.04.10 @ 02:00:21 Player: Dusky Result: Destroyed by S-10 Pest with Light Assault Rifle Performance ------------- Evolutions (0) 0 Regions Visited (4) 800 Robots Destroyed (10) 50 Value Destroyed (155) 155 Prototype IDs (0) 0 Alien Tech Used (0) 0 Bonus (82) 82 TOTAL SCORE: 1087 Bonus ------- Follower Combat Kills 88 Friendly Fire -6 Cogmind --------- Core Integrity 0/250 Matter 481/500 Energy 100/100 System Corruption 0% Temperature Cool (0) Movement Core (750) Ox14 Location -9/Mines Parts ------- > --- POWER (1) -------- (None) > --- PROPULSION (2) --- (None) > --- UTILITY (2) ------ High-capacity Storage Unit High-capacity Matter Pod > --- WEAPON (2) ------- (None) > --- INVENTORY (20) --- Ion Engine Xenon Bombardment Thruster Improved Heat Sink Small Battery (100) Energy Filter Core Shielding Medium Reactive Plating Shock Absorption System Corruption Screen Improved Trap Extractor (0/6) Grenade Launcher Heavy Missile Launcher Katana Greatsword Peak State ------------ > --- POWER ------------ Ion Engine > --- PROPULSION ------- Aluminum Leg Aluminum Leg > --- UTILITY ---------- High-capacity Storage Unit High-capacity Matter Pod > --- WEAPON ----------- Assault Rifle Heavy Missile Launcher > --- INVENTORY -------- Ion Engine Xenon Bombardment Thruster Improved Heat Sink Small Battery Energy Filter Core Shielding Medium Reactive Plating Shock Absorption System Corruption Screen Improved Trap Extractor Plasma Cannon Grenade Launcher Katana Greatsword [Rating: 14] Favorites ----------- Power Light Ion Engine Engine Light Ion Engine Propulsion Aluminum Leg Leg Aluminum Leg Flight Unit Xenon Bombardment Thruster Utility High-capacity Storage Unit Storage High-capacity Storage Unit Weapon Assault Rifle Energy Cannon Plasma Cannon Ballistic Gun Assault Rifle Launcher Grenade Launcher Build | -11 -10 -10 -10 -9 ------- Run | Yrd Mat Min Exi Min Slots Evolved . | . . . . . Power . | . . . . . Propulsion . | . . . . . Utility . | . . . . . Weapon . | . . . . . Parts Attached 16 | 5 2 . 2 7 Power 2 | 1 . . . 1 Engine 2 | 1 . . . 1 Core . | . . . . . Reactor . | . . . . . Propulsion 6 | 2 . . . 4 Treads . | . . . . . Leg 5 | 2 . . . 3 Wheel . | . . . . . Hover . | . . . . . Flight 1 | . . . . 1 Utility 3 | . 1 . 2 . Device . | . . . . . Storage 3 | . 1 . 2 . Processor . | . . . . . Hackware . | . . . . . Protection . | . . . . . Artifact . | . . . . . Weapon 5 | 2 1 . . 2 Energy Gun . | . . . . . Energy Cannon 1 | . . . . 1 Ballistic Gun 2 | 2 . . . . Ballistic Cannon . | . . . . . Launcher 2 | . 1 . . 1 Special Weapon . | . . . . . Impact Weapon . | . . . . . Slashing Weapon . | . . . . . Piercing Weapon . | . . . . . Special Melee Weapon . | . . . . . Unidentified Prototypes . | . . . . . Parts Lost 5 | . . . . 5 Power 1 | . . . . 1 Propulsion 2 | . . . . 2 Utility . | . . . . . Weapon 2 | . . . . 2 Highest Loss Streak 4 | . . . . 4 To Critical Strikes . | . . . . . Average Slot Usage (%) 96 | . 77 85 98 95 Engine 13 | . 14 14 14 13 Leg 26 | . 28 28 28 24 Storage 26 | . 6 14 26 28 Ballistic Gun 14 | . 17 14 14 13 Launcher 13 | . 10 14 14 13 Naked Turns . | . . . . . Heaviest Build 58 | 7 9 9 52 58 Greatest Support 20 | 20 20 20 20 20 Greatest Overweight (x) 19 | . . . 2 19 Average Overweight (x) 1 | . . . 1 2 Largest Inventory Capacity 20 | 5 5 5 20 20 Average Capacity 18 | 5 5 5 18 20 Most Carried 17 | 3 1 . 2 17 Average Carried 3 | . . . . 8 Final Capacity 20 | 5 5 5 20 20 Final Carried 15 | . . . 1 15 Class Distribution -------------------- 100% | Mutant Dominant Class ---------------- Mutant | -10/Materials Mutant | -10/Mines Mutant | -10/Exiles Mutant | -9/Mines Resources | -11 -10 -10 -10 -9 ----------- Run | Yrd Mat Min Exi Min Matter Collected 548 | 274 12 21 73 168 Remotely . | . . . . . Salvage Created 282 | 35 64 61 . 122 Parts 14 | 1 3 . . 10 Haulers Intercepted . | . . . . . Recyclers Shooed . | . . . . . Parts Field Recycled . | . . . . . Retrieved Matter . | . . . . . Parts Self-Destructed . | . . . . . Prevented . | . . . . . Kills | -11 -10 -10 -10 -9 ------- Run | Yrd Mat Min Exi Min Combat Hostiles Destroyed 5 | 1 1 . . 3 Guns 2 | 1 1 . . . AOE 3 | . . . . 3 Classes Destroyed 6 | 1 1 . . 4 Worker 1 | . . . . 1 Builder 2 | . . . . 2 Recycler 1 | . . . . 1 Operator 1 | . 1 . . . Swarmer 2 | . . . . 2 Grunt 3 | 1 1 . . 1 Best Kill Streak 4 | 1 1 . . 4 Combat Bots Only 2 | 1 1 . . 2 Max Kills in Single Turn 3 | 1 1 . . 3 Gunslinging . | . . . . . Exploded 1 | . . . . 1 Melee . | . . . . . Uniques/NPCs Destroyed . | . . . . . Combat | -11 -10 -10 -10 -9 -------- Run | Yrd Mat Min Exi Min Hostile Shots Fired 119 | 7 4 1 . 107 Missed 29 | 1 2 . . 26 Damage Taken 883 | 67 23 28 . 765 Core 252 | 22 . 21 . 209 Absorbed by Shields . | . . . . . Core Remaining (%) 91 | 91 . . . . Volleys Fired 26 | 4 9 4 . 9 Largest 2 | 2 2 2 . 2 Hottest 80 | 40 40 50 . 80 Shots Fired 37 | 8 11 5 . 13 Gun 24 | 8 11 1 . 4 Cannon 5 | . . . . 5 Launcher 8 | . . 4 . 4 Special . | . . . . . Kinetic 24 | 8 11 1 . 4 Thermal 5 | . . . . 5 Explosive 8 | . . 4 . 4 Electromagnetic . | . . . . . Robot Hit Streak 5 | 4 5 4 . 4 Robot Miss Streak 2 | 1 2 1 . 2 Penetration Max . | . . . . . Secondary Targets . | . . . . . Shots Hit Robots 22 | 6 8 4 . 4 Core Hits 40 | 2 4 27 . 7 Critical Kills 1 | . . . . 1 Critical Parts Destroyed . | . . . . . Critical Strikes 1 | . . . . 1 Meltdown 1 | . . . . 1 Melee Attacks . | . . . . . Impact . | . . . . . Slashing . | . . . . . Piercing . | . . . . . Sneak Attacks . | . . . . . Combat Hostiles . | . . . . . Follow-up Attacks . | . . . . . Damage Inflicted 1587 | 69 96 901 . 521 Guns 176 | 69 96 11 . . Cannons 106 | . . . . 106 Explosions 1274 | . . 890 . 384 Melee . | . . . . . Ramming 31 | . . . . 31 Kinetic 176 | 69 96 11 . . Thermal 106 | . . . . 106 Explosive 1274 | . . 890 . 384 Electromagnetic . | . . . . . Impact . | . . . . . Slashing . | . . . . . Piercing . | . . . . . Highest Corruption . | . . . . . Average Corruption . | . . . . . Corruption Purged . | . . . . . Corruption Blocked . | . . . . . Overload Shots . | . . . . . Overflow Damage 107 | . . 38 . 69 Projectiles 6 | . . . . 6 Explosions 101 | . . 38 . 63 Melee . | . . . . . Knockbacks . | . . . . . Impact . | . . . . . Kinetic . | . . . . . Secondary . | . . . . . Self-Inflicted Damage 78 | . . 15 . 63 Shots 2 | . . 1 . 1 Rammed . | . . . . . Targets Rammed 4 | . . . . 4 Kicked 4 | . . . . 4 Crushed . | . . . . . Highest Temperature 150 | . . . . 150 Average Temperature 80 | . . . . 80 Received Heat Transfer 48 | 36 12 . . . Siege Activations . | . . . . . Robots Corrupted . | . . . . . Combat Hostiles . | . . . . . Parts Fried . | . . . . . Impact Corruptions . | . . . . . Robots Melted 1 | . . . . 1 Combat Hostiles . | . . . . . Parts Melted . | . . . . . Heat Transferred 200 | . . . . 200 Parts Sabotaged . | . . . . . Parts Stolen . | . . . . . Parts Stripped . | . . . . . Power Chain Reactions . | . . . . . Alert | -11 -10 -10 -10 -9 ------- Run | Yrd Mat Min Exi Min Peak Influence 97 | 20 43 31 . 97 Initial 16 | . 13 16 . . Average 27 | 3 25 28 . 29 Maximum Alert Level . | . . . . . Low Security (%) 100 | 100 100 100 . 100 Level 1 . | . . . . . Level 2 . | . . . . . Level 3 . | . . . . . Level 4 . | . . . . . Level 5 . | . . . . . High Security . | . . . . . Max Security . | . . . . . Squads Dispatched 1 | . 1 . . . Investigation . | . . . . . Extermination . | . . . . . Reinforcement 1 | . 1 . . . Assault . | . . . . . Garrison . | . . . . . Intercept . | . . . . . Searches Triggered . | . . . . . Construction Impeded . | . . . . . Haulers Reinforced . | . . . . . Active Scanning Responses . | . . . . . Cargo Convoy Interrupts . | . . . . . Stealth | -11 -10 -10 -10 -9 --------- Run | Yrd Mat Min Exi Min Distress Signals 1 | . 1 . . . Communications Jammed . | . . . . . Distress Signals . | . . . . . Times Spotted 34 | 1 3 16 . 14 Peak Tracking Total 19 | 1 2 19 . 4 Tactical Retreats 2 | . . . . 2 Traps | -11 -10 -10 -10 -9 ------- Run | Yrd Mat Min Exi Min Traps Triggered 2 | . . . . 2 Indirectly . | . . . . . Trap Hack Attempts . | . . . . . Triggered . | . . . . . Disarmed . | . . . . . Reprogrammed . | . . . . . Reused . | . . . . . Traps Extracted . | . . . . . Installed . | . . . . . Triggered 1 | . . . . 1 Machines | -11 -10 -10 -10 -9 ---------- Run | Yrd Mat Min Exi Min Machines Disabled . | . . . . . Max in Single Turn . | . . . . . Machines Repaired . | . . . . . Machines Dismantled . | . . . . . Machines Sabotaged . | . . . . . Overloaded Fab Kills . | . . . . . Hacking | -11 -10 -10 -10 -9 --------- Run | Yrd Mat Min Exi Min Machines Accessed 7 | . 2 . 4 1 Terminals 2 | . 2 . . . Fabricators . | . . . . . Repair Stations . | . . . . . Recycling Units . | . . . . . Scanalyzers . | . . . . . Garrison Access . | . . . . . Total Hacks 53 | . 3 . 49 1 Successful 51 | . 1 . 49 1 Failed 2 | . 2 . . . Catastrophic . | . . . . . Database Lockouts . | . . . . . Manual 1 | . . . 1 . Terminals 3 | . 3 . . . Fabricators . | . . . . . Repair Stations . | . . . . . Recycling Units . | . . . . . Scanalyzers . | . . . . . Garrison Access . | . . . . . Terminal Hacks 51 | . 1 . 49 1 Record 49 | . . . 49 . Open Door 1 | . . . . 1 Zone Layout 1 | . 1 . . . Fabricator Hacks . | . . . . . Repair Station Hacks . | . . . . . Recycling Unit Hacks . | . . . . . Scanalyzer . | . . . . . Garrison Access Hacks . | . . . . . Unauthorized Hacks . | . . . . . Terminals . | . . . . . Fabricators . | . . . . . Repair Stations . | . . . . . Recycling Units . | . . . . . Scanalyzers . | . . . . . Garrison Access . | . . . . . Data Cores Recovered 1 | . 1 . . . Used . | . . . . . Hacking Detections 1 | . 1 . . . Full Trace Events . | . . . . . Feedback Events . | . . . . . Feedback Blocked . | . . . . . Robot Schematics Acquired . | . . . . . Robots Built . | . . . . . Authchips . | . . . . . Time . | . . . . . Total Robot Build Rating . | . . . . . Part Schematics Acquired . | . . . . . Parts Built . | . . . . . Authchips . | . . . . . Time . | . . . . . Total Part Build Rating . | . . . . . Parts Repaired . | . . . . . Time . | . . . . . Parts Recycled . | . . . . . Recycled Matter . | . . . . . Retrieved Matter . | . . . . . Retrieved Components . | . . . . . Parts Scanalyzed . | . . . . . Part Schematics Acquired . | . . . . . Parts Damaged . | . . . . . Bothacking | -11 -10 -10 -10 -9 ------------ Run | Yrd Mat Min Exi Min Used RIF Installer . | . . . . . Robots Hacked . | . . . . . Non-combat . | . . . . . Combat . | . . . . . Robot Hacks Applied . | . . . . . Relay Couplers Released . | . . . . . Fabnet Peak Effective % . | . . . . . Robots Rewired . | . . . . . Allies Hacked . | . . . . . Hacks Repelled . | . . . . . Allies | -11 -10 -10 -10 -9 -------- Run | Yrd Mat Min Exi Min Total Allies 3 | . . . . 3 Largest Group 3 | . . . . 3 Highest-Rated Group 40 | . . . . 40 Highest-Rated Ally 16 | . . . . 16 Total Orders . | . . . . . Ally Attacks 34 | . . . . 34 Total Damage 324 | . . . . 324 Kills 6 | . . . . 6 Allies Corrupted . | . . . . . Allies Melted . | . . . . . Intel | -11 -10 -10 -10 -9 ------- Run | Yrd Mat Min Exi Min Robot Analysis Total . | . . . . . Derelict Logs Recovered 1 | . . . . 1 Drone Launches . | . . . . . Drone Recoveries . | . . . . . Exploration | -11 -10 -10 -10 -9 ------------- Run | Yrd Mat Min Exi Min Turns Passed 4774 | 138 206 48 2684 1698 Spaces Moved 2005 | 128 150 33 1131 563 Core 62 | 55 . . . 7 Treads . | . . . . . Legs 1943 | 73 150 33 1131 556 Wheels . | . . . . . Hover . | . . . . . Flight . | . . . . . Fastest Speed 50 | 50 120 120 120 260 Average Speed 231 | 89 120 120 236 290 Slowest Speed 1000 | 120 120 120 260 1000 Overloaded Moves . | . . . . . Propulsion Burnouts . | . . . . . Robots Hopped . | . . . . . Cave-ins Triggered . | . . . . . Exploration Rate (%) 43 | 6 26 14 92 79 Regions Visited 4 Branch Regions 3 Pre-discovered Areas 1 | . . . 1 . Known Exits Taken . | . . . . . Unknown Exits Taken 4 | 1 1 1 1 . Scrap Searched . | . . . . . Spaces Dug . | . . . . . Terrain Destroyed 84 | . . 17 . 67 Melee . | . . . . . Projectile 1 | . . . . 1 AOE 83 | . . 17 . 66 Terrain Rammed . | . . . . . Walls Destroyed . | . . . . . Machines Disabled . | . . . . . Actions | -11 -10 -10 -10 -9 --------- Run | Yrd Mat Min Exi Min Total 2092 | 143 165 36 1139 609 Wait 5 | . 2 . . 3 Move 2001 | 127 149 32 1130 563 Hop . | . . . . . Pick Up 27 | 6 2 . 2 17 Fast Attach . | . . . . . Attach 16 | 5 2 . 2 7 Detach 4 | . . . 1 3 Swap . | . . . . . Drop 5 | 1 1 . . 3 Fire 26 | 4 9 4 . 9 Melee . | . . . . . Ram . | . . . . . Kick 4 | . . . . 4 Crush . | . . . . . Escape Stasis . | . . . . . Rewire 4 | . . . 4 . Trap . | . . . . . Miscellaneous . | . . . . . Route ------- -11/Scrapyard -10/Materials -10/Mines -10/Exiles (discovered 2 exits: *Min x2) -9/Mines History --------- Turn | Location | Event 2 | -11/Scrapyard | Met Revision 17 90 | -11/Scrapyard | Discovered new exit (range 8) 139 | -11/Scrapyard | Entered Materials 253 | -10/Materials | Discovered new exit (range 11) 318 | -10/Materials | Build established: Mutant 323 | -10/Materials | Met 8R-AWN 345 | -10/Materials | Entered Mines 346 | -10/Mines | Assembled infested the area 347 | -10/Mines | Followed 8R-AWN into the Mines 388 | -10/Mines | Discovered new exit (range 5) 393 | -10/Mines | Entered Exiles 423 | -10/Exiles | Welcomed by 8R-AWN 456 | -10/Exiles | Discovered new exit (range 14) 477 | -10/Exiles | Learned about 8R-AWN's background 497 | -10/Exiles | Met EX-HEX 548 | -10/Exiles | Met EX-DEC 565 | -10/Exiles | Learned location of Zion (-7) 670 | -10/Exiles | Discovered new exit (range 11) 843 | -10/Exiles | Visited The Gauntlet 1258 | -10/Exiles | Met EX-BIN 3077 | -10/Exiles | Entered Mines 3132 | -9/Mines | Assisted by bots powering up and referring to "LRC-V3" 3838 | -9/Mines | Learned Materials trap positions 3920 | -9/Mines | Met a Derelict who couldn't figure out how to use a Trap Extractor 4742 | -9/Mines | Core integrity fell below 50% 4768 | -9/Mines | Core integrity fell below 20% 4775 | -9/Mines | Destroyed by S-10 Pest with Light Assault Rifle Last Messages --------------- U-05 Engineer builds a Wall. The unstable cave ceiling collapses. U-05 Engineer lays Concrete. U-05 Engineer builds a Wall. U-05 Engineer lays Concrete. U-05 Engineer builds a Wall. U-05 Engineer lays Concrete. U-05 Engineer builds a Wall. S-10 Pest destroyed. K-01 Serf collects debris. Ion Engine destroyed. K-01 Serf collects debris. Assault Rifle destroyed. Destroyed Flight Unit. Aluminum Leg destroyed. K-01 Serf suffers critical hit (Meltdown). [Achievement: It's Just You] U-05 Engineer builds a Wall. Plasma Cannon destroyed. [Achievement: First Step to Greatness] Map ----- +----------------------------------------------------+ | ??####???????????????????????????????? | | ?????????????????????????????????????? | | ?????????????????????????????????????? | | ????????????????????????????? ??????? | | ????????????????????????????? ??????? | | ????????????????????????????? ??????? | | ????????????????????????????? "?????? | | ????????????????????????????? "?????? | | ????????????????????????????? ?????? | | ????????????????????????????? ?????? | | ????????????????????????????? ?????? | | ????????????????###??????????# #?????? | | ???????????????# #??????????# #?????? | | ????????????### ???????????# #?????? | | ???######??## ????????#### #?????? | | ??## ##?# ????????## # #?????? | | ??# #?# ????????# ##????? | | ??# #?# ?????????# = #????? | | ?## #?# ??#######?# % #????? | | ## ######## #### ??## = ##???? | | ##???## # # #T ???## ##??? | | ########!# ## ????## ##?? | | != =%[*! # ???###susk ##?? | | #######%# # ## #??## s #??? | | # #????# | # #### #### ##??? | | ## #????## #[ @ ####???? | | ?# #???## # * ### ##??????? | | ?# #???# #### """ ##???????? | | ?# #???# # ##### """ #????????? | | ?# #??## ### """ #????????? | | ?# #?## ### #???????? | | ? ### ## #### t #???????? | | ? ### ## #??## #???????? | | ?##### ## #???# ##???????? | | #???# ## ### #???## ##????????? | | #???## #### #?# #????## #?????????? | | #????#####???# ### #?????# ??????????? | | #????????????#% #?????# ??????????? | | #????????????#%#####?????? ??????????? | | #????????????# ##????????? ??????????? | | ###?????????##%##????????????????????? | | #?????????##=##????????????????????? | | # #####?????##%##????????????????????? | | # #?????##[##????????????????????? | | ##### #?????## ##????????????????????? | | ????# ###???##%##????????????????????? | | ???## ###??# #?????????????????????? | | ??## #### #?????????????????????? | | ??# #?????????????????????? | | ??# #?????????????????????? | +----------------------------------------------------+ Best States ------------- Heat Dissipation 25 Energy Generation 10 Energy Capacity 250 Matter Stores 500 Matter Capacity 500 Sight Range 16 Terrain Scan Density 10 Evasion (%) 55 Item Schematics ----------------- None Robot Schematics ------------------ None Fabricated ------------ Nothing Alien Tech Used ----------------- None Achievements -------------- First Step to Greatness I Survived The Infestation It's Just You Librarian Slippery One Tourist Uninvited Guest Challenges ------------ None Game ------ Seed SkeletonDisruptionDoomcannon Manual? 0 Play Time 00:31:11 Cumulative 0.4 hours Start 2024.04.08 @ 16:38:05 End 2024.04.10 @ 02:00:21 Sessions 5 Manual Loads 0 Difficulty Rogue Special Mode None Game No. 1 Rogue 1 Adventurer 0 Explorer 0 Win Type - Total 0 Types 0/0/0/0/0/0/0/0/0 Lore% 8 Gallery% 1 Achievement% 2 Wizard Run 0 Options --------- Layout 1 ASCII 0 Keyboard 0 Movement Mouse Keybinds 0 Fullscreen 2 Font 32/SmallcapsGlow Map View 50x35 Zoom Use 0% Tactical HUD 0 Map Filters NONE Filters NONE Steam 0 RUN: c3ae275d-11c8-48b5-9352-924928ef6c5e